{"text_format":"5","workbook":"xlsx","n_sheets":2,"sheets":["Árazott","Árazatlan"],"props":{"creator":"Bandi","last_modified_by":"Megyeri Sándor János"},"read":"whole","wrapped":"gz","date_system":"1900"}

{"sheet":"Árazott","index":0,"n_rows":67,"n_cols":8,"rows_kept":67,"merged":[[0,0,0,7],[1,0,1,7],[2,0,2,7],[5,2,5,3],[5,4,5,6],[8,0,8,1],[10,4,10,6],[11,2,11,3],[11,4,11,6],[20,0,20,1],[22,4,22,6],[23,2,23,3],[23,4,23,6],[27,0,27,1],[29,4,29,6],[31,2,31,3],[31,4,31,6],[33,0,33,1],[35,4,35,6],[36,2,36,3],[36,4,36,6],[38,0,38,1],[40,4,40,6],[41,2,41,3],[41,4,41,6],[45,0,45,1],[47,4,47,6],[48,2,48,3],[48,4,48,6],[49,0,49,1],[51,1,51,7],[53,0,53,7],[65,0,65,7],[66,0,66,7],[67,0,67,7]]}
["Veresegyházi Katolikus Gimnázium"]
["KÖZLEKEDÉSI MUNKARÉSZ"]
["Előzetes költségbecslés"]
[]
["I. BONTÁSI- ÉS ÉPÍTÉSELŐKÉSZÍTŐ MUNKÁK"]
[null,"Tétel:","Mennyiség:",null,"Egységár",null,null,"Díjtétel Nettó (Ft)"]
[1,"Szegély bontása",18,"fm",null,"Ft/",{"$f":"D7","v":"fm"},{"$f":"+C7*E7","v":0}]
[2,"Aszfalt burkolat és járda bontása, aszfaltos törmelék elszállítása lerakóhelyre",55,"m2",null,"Ft/",{"$f":"D8","v":"m2"},{"$f":"+C8*E8","v":0}]
["Összesen:",{"$nulls":6},{"$f":"+H8+H7","v":0}]
[]
["II. ALÉPÍTMÉNYI MUNKÁK"]
[null,"Tétel:","Mennyiség:",null,"Egységár",null,null,"Díjtétel Nettó (Ft)"]
[1,"Földkiemelés pályaszerkezet helyén föld elszállításával",961,"m3",null,"Ft/",{"$f":"D13","v":"m3"},{"$f":"+C13*E13","v":0}]
[2,"Úttükör készítése",{"v":2114,"d":"2,114"},"m2",null,"Ft/",{"$f":"D14","v":"m2"},{"$f":"+C14*E14","v":0}]
[3,"Úttükör tömörítése nagy felületen Trg=95% tömörségi fokra",{"v":1057,"d":"1,057"},"m3",null,"Ft/","m3",0]
[4,"Kiemelt szegély  építése előregyártott beton elemekből C 20/25-32/FN min. beton alapgerendával",464,"fm",null,"Ft/","fm",0]
[5,"Sülyesztett szegély  építése előregyártott beton elemekből C 20/25-32/FN min. beton alapgerendával",210,"fm",null,"Ft/",{"$f":"D17","v":"fm"},0]
[6,"Homokos kavics védőréteg építése és tömörítése Trr=95% tömörségre",289,"m3",null,"Ft/",{"$f":"D18","v":"m3"},0]
[7,"FZKA zúrottkő alapréteg építése",481,"m3",null,"Ft/","m3",0]
[8,"Tömör bazaltzúzalék építése térkő alá",58,"m3",null,"Ft/","m3",0]
["Összesen:",{"$nulls":6},{"$f":"SUM(H13:H20)","v":0}]
[]
["III. FELÉPÍTMÉNYI MUNKÁK"]
[null,"Tétel:","Mennyiség:",null,"Egységár",null,null,"Díjtétel Nettó (Ft)"]
[1,"AC 8 kopó aszfaltréteg készítése gépi erővel",1,"m3",null,"Ft/",{"$f":"D25","v":"m3"},{"$f":"+C25*E25","v":0}]
[2,"8 cm vtg. szürke színű térkő burkolat építése",{"v":1845,"d":"1,845"},"m2",null,"Ft/","m2",0]
[3,"8 cm vtg. vörös színű térkő burkolat építése parkolók elválasztására",50,"m2",null,"Ft/",{"$f":"D27","v":"m2"},0]
["Összesen:",{"$nulls":6},{"$f":"SUM(H25:H27)","v":0}]
[]
[]
["IV. VÍZÉPÍTÉSI MUNKÁK"]
[null,"Tétel:","Mennyiség:",null,"Egységár",null,null,"Díjtétel Nettó (Ft)"]
[1,"Víznyelő ENVIA CRC 5 betéttel",7,"db",null,"Ft/","db",{"$f":"+C33*E33","v":0}]
["Összesen:",{"$nulls":6},{"$f":"SUM(H33)","v":0}]
[]
[]
[null,"Tétel:","Mennyiség:",null,"Egységár",null,null,"Díjtétel Nettó (Ft)"]
[{"$nulls":7},{"$f":"+C38*E38","v":0}]
[{"$nulls":7},{"$f":"SUM(H38)","v":0}]
[]
["V. FORGALOMTECHNIKA"]
[null,"Tétel:","Mennyiség:",null,"Egységár",null,null,"Díjtétel Nettó (Ft)"]
[1,"Jelzőtábla oszlop elhelyezése",4,"db",null,"Ft/",{"$f":"D43","v":"db"},{"$f":"+C43*E43","v":0}]
[2,"Új jelzőtábla elhelyezése oszlopra",8,"db",null,"Ft/","db",0]
[1,"Építés alatti forgalomtechnika",1,"készlet",null,"Ft/",{"$f":"D45","v":"készlet"},0]
["Összesen:",{"$nulls":6},{"$f":"SUM(H43:H45)","v":0}]
[]
[]
[null,"Tétel:","Mennyiség:",null,"Egységár",null,null,"Díjtétel Nettó (Ft)"]
["Összesen:",{"$nulls":6},{"$f":"SUM(H49)","v":0}]
[]
[]
[]
["KÖLTSÉGVETÉSI FŐÖSSZESÍTŐ"]
[]
["I. BONTÁSI- ÉS ÉPÍTÉSELŐKÉSZÍTŐ MUNKÁK",{"$nulls":6},{"$f":"H9","v":0}]
["II. ALÉPÍTMÉNYI MUNKÁK",{"$nulls":6},{"$f":"H21","v":0}]
["III. FELÉPÍTMÉNYI MUNKÁK",{"$nulls":6},{"$f":"H28","v":0}]
["IV. VÍZÉPÍTÉSI MUNKÁK",{"$nulls":6},{"$f":"H34","v":0}]
["V. FORGALOMTECHNIKA",{"$nulls":6},{"$f":"H46","v":0}]
[{"$nulls":7},{"$f":"H50","v":0}]
["ÖSSZESEN:",{"$nulls":6},{"$f":"SUM(H56:H61)","v":0}]
["27 % áfa",{"$nulls":6},{"$f":"H62*0.27","v":0}]
["MINDÖSSZESEN BRUTTÓ:",{"$nulls":6},{"$f":"SUM(H62:H63)","v":0}]
[]
["Megjegyzés:"]
["-A kiírás Bontási és építés-előkészítési munkák fejezetében szereplő tételek csak A közterületen szükséges beavatkozásokat tartalmazzák"]

{"sheet":"Árazatlan","index":1,"n_rows":70,"n_cols":8,"rows_kept":70,"merged":[[0,0,0,7],[1,0,1,7],[2,0,2,7],[5,2,5,3],[5,4,5,6],[8,0,8,1],[10,4,10,6],[11,2,11,3],[11,4,11,6],[20,0,20,1],[22,4,22,6],[23,2,23,3],[23,4,23,6],[27,0,27,1],[29,4,29,6],[31,2,31,3],[31,4,31,6],[32,0,32,1],[34,4,34,6],[35,2,35,3],[35,4,35,6],[36,0,36,1],[38,4,38,6],[39,2,39,3],[39,4,39,6],[43,0,43,1],[45,4,45,6],[46,2,46,3],[46,4,46,6],[47,0,47,1],[49,1,49,7],[51,0,51,7],[64,0,64,7],[65,0,65,7],[66,0,66,7]]}
["Veresegyházi Katolikus Gimnázium"]
["KÖZLEKEDÉSI MUNKARÉSZ"]
["Előzetes költségvetési kiírás"]
[]
["I. BONTÁSI- ÉS ÉPÍTÉSELŐKÉSZÍTŐ MUNKÁK"]
[null,"Tétel:","Mennyiség:",null,"Egységár",null,null,"Díjtétel Nettó (Ft)"]
[1,"Szegély bontása",18,"fm",null,"Ft/",{"$f":"D7","v":"fm"},{"$f":"C7*E7","v":0}]
[2,"Aszfalt burkolat és járda bontása, aszfaltos törmelék elszállítása lerakóhelyre",55,"m2",null,"Ft/",{"$f":"D8","v":"m2"},0]
["Összesen:",{"$nulls":6},{"$f":"SUM(H7:H8)","v":0}]
[]
["II. ALÉPÍTMÉNYI MUNKÁK"]
[null,"Tétel:","Mennyiség:",null,"Egységár",null,null,"Díjtétel Nettó (Ft)"]
[1,"Földkiemelés pályaszerkezet helyén föld elszállításával",961,"m3",null,"Ft/",{"$f":"D13","v":"m3"},{"$f":"C13*E13","v":0}]
[2,"Úttükör készítése",{"v":2114,"d":"2,114"},"m2",null,"Ft/",{"$f":"D14","v":"m2"},0]
[3,"Úttükör tömörítése nagy felületen Trg=95% tömörségi fokra",{"v":1057,"d":"1,057"},"m3",null,"Ft/","m3",0]
[4,"Kiemelt szegély  építése előregyártott beton elemekből C 20/25-32/FN min. beton alapgerendával",464,"fm",null,"Ft/","fm",0]
[5,"Sülyesztett szegély  építése előregyártott beton elemekből C 20/25-32/FN min. beton alapgerendával",210,"fm",null,"Ft/",{"$f":"D17","v":"fm"},{"$f":"C17*E17","v":0}]
[6,"Homokos kavics védőréteg építése és tömörítése Trr=95% tömörségre",289,"m3",null,"Ft/",{"$f":"D18","v":"m3"},{"$f":"C18*E18","v":0}]
[7,"FZKA zúrottkő alapréteg építése",481,"m3",null,"Ft/","m3",0]
[8,"Tömör bazaltzúzalék építése térkő alá",58,"m3",null,"Ft/","m3",0]
["Összesen:",{"$nulls":6},{"$f":"SUM(H13:H20)","v":0}]
[]
["III. FELÉPÍTMÉNYI MUNKÁK"]
[null,"Tétel:","Mennyiség:",null,"Egységár",null,null,"Díjtétel Nettó (Ft)"]
[1,"AC 8 kopó aszfaltréteg készítése gépi erővel",1,"m3",null,"Ft/",{"$f":"D25","v":"m3"},{"$f":"C25*E25","v":0}]
[2,"8 cm vtg. szürke színű térkő burkolat építése",{"v":1845,"d":"1,845"},"m2",null,"Ft/","m2",0]
[3,"8 cm vtg. vörös színű térkő burkolat építése parkolók elválasztására",50,"m2",null,"Ft/",{"$f":"D27","v":"m2"},{"$f":"C27*E27","v":0}]
["Összesen:",{"$nulls":6},{"$f":"SUM(H25:H27)","v":0}]
[]
[]
["IV. VÍZÉPÍTÉSI MUNKÁK"]
[null,"Tétel:","Mennyiség:",null,"Egységár",null,null,"Díjtétel Nettó (Ft)"]
["Összesen:",{"$nulls":6},{"$f":"SUM(H32)","v":0}]
[]
["V. BEFEJEZŐ MUNKÁK"]
[null,"Tétel:","Mennyiség:",null,"Egységár",null,null,"Díjtétel Nettó (Ft)"]
["Összesen:",{"$nulls":6},{"$f":"SUM(H36)","v":0}]
[]
["VI. FORGALOMTECHNIKA"]
[null,"Tétel:","Mennyiség:",null,"Egységár",null,null,"Díjtétel Nettó (Ft)"]
[1,"Jelzőtábla oszlop elhelyezése",4,"db",null,"Ft/",{"$f":"D41","v":"db"},{"$f":"C41*E41","v":0}]
[2,"Új jelzőtábla elhelyezése oszlopra",8,"db",null,"Ft/","db",{"$f":"C42*E42","v":0}]
[1,"Építés alatti forgalomtechnika",1,"készlet",null,"Ft/",{"$f":"D43","v":"készlet"},{"$f":"C43*E43","v":0}]
["Összesen:",{"$nulls":6},{"$f":"SUM(H41:H43)","v":0}]
[]
["VII. EGYÉB MUNKÁK"]
[null,"Tétel:","Mennyiség:",null,"Egységár",null,null,"Díjtétel Nettó (Ft)"]
["Összesen:",{"$nulls":6},{"$f":"SUM(H47)","v":0}]
[]
[]
[]
["KÖLTSÉGVETÉSI FŐÖSSZESÍTŐ"]
[]
["I. BONTÁSI- ÉS ÉPÍTÉSELŐKÉSZÍTŐ MUNKÁK",{"$nulls":6},{"$f":"H9","v":0}]
["II. ALÉPÍTMÉNYI MUNKÁK",{"$nulls":6},{"$f":"H21","v":0}]
["III. FELÉPÍTMÉNYI MUNKÁK",{"$nulls":6},{"$f":"H28","v":0}]
["IV. VÍZÉPÍTÉSI MUNKÁK",{"$nulls":6},{"$f":"H33","v":0}]
["V. BEFEJEZŐ MUNKÁK",{"$nulls":6},{"$f":"H37","v":0}]
["VI. FORGALOMTECHNIKA",{"$nulls":6},{"$f":"H44","v":0}]
["VII. EGYÉB MUNKÁK",{"$nulls":6},{"$f":"H48","v":0}]
["ÖSSZESEN:",{"$nulls":6},{"$f":"SUM(H54:H60)","v":0}]
["27 % áfa",{"$nulls":6},{"$f":"H61*0.27","v":0}]
["MINDÖSSZESEN BRUTTÓ:",{"$nulls":6},{"$f":"SUM(H61:H62)","v":0}]
[]
["Megjegyzés:"]
["-A kiírás Bontási és építés-előkészítési munkák fejezetében szereplő tételek csak a közterületen szükséges beavatkozásokat tartalmazzák"]
["-A kiírás a szükséges vízépítési munkákat nem tartalmazza"]
[]
[]
[null,"Budapest, 2017. október"]